bitfinex-derivatives/quotes_ETHF0:USTF0_20250730
["timestamp","ask_amount","ask_price","bid_price","bid_amount"]
[1753906276881,0.52849,3784.3,3784.1,10.43451499]
[1753906277080,3.2078,3784.6,3784.1,3.68931499]
[1753906277282,22.36633,3784.7,3784.6,4.8061]
[1753906277483,22.36633,3784.7,3784.6,6.2167]
[1753906277798,26.22583,3784.7,3784.6,4.8061]
[1753906278082,26.22583,3784.7,3784.6,1.4707]
[1753906278488,4.62429,3784.3,3784.2,5.3381]
[1753906278691,6.93189,3784.3,3784.2,6.2167]
[1753906279290,6.93189,3784.3,3784.1,3.68931499]
[1753906279291,6.4034,3784.2,3784.1,3.68931499]
[1753906279490,0.61,3783.0,3782.9,1.383]
[1753906279684,3.1783,3783.0,3782.9,6.2167]
[1753906280087,2.08054,3783.3,3782.9,6.2167]
[1753906280291,19.284,3783.5,3783.4,6.2167]
[1753906280895,4.62766,3783.9,3783.8,5.2862]
[1753906281088,23.91266,3783.9,3783.8,6.2167]
[1753906281391,22.4623,3783.9,3783.8,6.2167]
[1753906281587,0.9208,3784.2,3783.1,1.32166]
[1753906281588,2.5472,3784.2,3784.1,4.8337]
[1753906281793,5.66498,3783.8,3783.7,1.4707]
[1753906281988,1.6264,3783.3,3783.2,2.5445]
[1753906282187,4.0991,3783.3,3783.2,6.2167]
[1753906282589,4.4981,3783.3,3783.2,6.2167]
[1753906283091,4.4981,3783.3,3783.2,4.8061]
[1753906283493,4.4981,3783.3,3783.2,6.2167]
[1753906283894,4.0991,3783.3,3783.2,9.90601499]
[1753906284294,3.1783,3783.3,3783.2,9.90601499]
[1753906284890,1.6264,3783.3,3783.2,3.68931499]
[1753906285092,5.1364,3783.3,3783.2,5.07231499]
[1753906285401,5.1364,3783.3,3783.2,6.54301499]
[1753906285889,5.1364,3783.3,3783.2,7.47351499]
[1753906286090,5.1364,3783.3,3783.2,8.69237567]
[1753906286988,5.1364,3783.3,3783.2,10.10297567]
[1753906287892,24.02415,3784.0,3783.9,4.8061]
[1753906288196,24.4164,3784.0,3783.9,6.41366068]
[1753906288599,3.43881,3784.3,3784.2,2.5158]
[1753906288802,24.80191,3784.3,3784.2,1.08706068]
[1753906289099,24.80191,3784.3,3784.2,0.19696068]
[1753906289795,5.46365,3784.0,3783.9,3.6101]
[1753906289995,4.9351,3783.6,3783.5,6.1137]
[1753906290296,21.5844,3784.2,3783.9,3.68931499]
[1753906290497,19.277,3784.2,3784.1,6.64223]
[1753906290897,2.4521,3784.6,3784.5,2.5158]
[1753906291096,22.3123,3784.6,3784.5,6.1137]
[1753906291690,19.276,3784.6,3784.5,6.1137]
[1753906291900,22.3123,3784.6,3784.5,6.1137]
[1753906292191,23.1739,3784.6,3784.5,6.1137]
[1753906292397,24.2111,3784.6,3784.5,6.1137]
[1753906293290,24.2111,3784.6,3784.5,3.7985]
[1753906293493,24.2111,3784.6,3784.5,2.7675]
[1753906293893,0.52847,3784.5,3784.2,2.1253]
[1753906294095,1.0121,3784.0,3783.9,4.72031499]
[1753906294389,1.5905,3784.0,3783.9,9.80301499]
[1753906294594,19.6709,3784.2,3783.9,9.80301499]
[1753906294794,19.272,3784.2,3784.1,2.5158]
[1753906294995,19.272,3784.2,3784.1,6.1137]
[1753906295402,19.8504,3784.2,3784.1,9.80301499]
[1753906295993,22.3083,3784.2,3784.1,9.80301499]
[1753906296302,24.2071,3784.2,3784.1,5.17411499]
[1753906296597,24.2071,3784.2,3784.1,4.57941499]
[1753906296798,24.2071,3784.2,3784.1,3.68931499]
[1753906298201,24.2071,3784.2,3784.1,3.29041499]
[1753906298398,2.4579,3783.8,3783.7,3.04438]
[1753906298698,20.2791,3783.8,3783.7,6.64228]
[1753906298903,20.2791,3783.8,3783.7,6.1137]
[1753906299604,22.3033,3783.8,3783.7,6.1137]
[1753906300802,21.7249,3783.8,3783.7,6.1137]
[1753906301501,3.5648,3784.3,3784.2,2.7675]
[1753906301701,22.8278,3784.3,3784.2,3.6101]
[1753906303006,22.8278,3784.3,3784.2,4.6411]
[1753906303605,23.6074,3784.3,3784.2,2.3274]
[1753906304297,3.8159,3783.8,3783.7,3.68931499]
[1753906304507,23.0759,3783.8,3783.7,1.40368342]
[1753906304802,1.5905,3783.9,3783.8,5.519]
[1753906305004,22.2963,3783.9,3783.8,6.1137]
[1753906305200,3.2078,3784.0,3783.8,2.5158]
[1753906305406,5.316,3784.4,3784.3,3.7985]
[1753906305594,5.316,3784.4,3784.3,5.2711]
[1753906305595,24.574,3784.4,3784.3,5.2711]
[1753906305905,0.7796,3784.8,3784.6,3.04426]
[1753906305906,2.4579,3784.7,3784.6,3.04426]
[1753906306103,1.0121,3784.7,3784.6,6.64216]
[1753906306402,1.0121,3785.0,3784.9,6.1137]
[1753906306600,20.98835808,3785.0,3784.9,6.1137]
[1753906306801,20.2701,3785.0,3784.9,6.1137]
[1753906307004,1.0121,3785.0,3784.9,6.1137]
[1753906307306,19.257,3785.0,3784.9,6.1137]
[1753906308103,20.27915712,3785.0,3784.9,6.1137]
[1753906308405,21.72495712,3785.0,3784.9,6.1137]
[1753906308704,24.58305712,3785.0,3784.9,6.1137]
[1753906310305,2.9864,3784.3,3784.2,6.1137]
[1753906310499,1.3495,3784.6,3784.1,3.7985]
[1753906310500,5.84453,3784.2,3784.1,3.7985]
[1753906310694,5.84453,3784.2,3784.1,1.4848]
[1753906311108,5.85458712,3784.2,3784.1,2.3274]
[1753906311309,5.85458712,3784.2,3784.1,3.6101]
[1753906311712,5.85458712,3784.2,3784.1,6.1137]
[1753906311900,0.52857,3783.9,3783.7,0.8426]
[1753906312211,5.316,3783.9,3783.8,6.10364288]
[1753906312708,1.0121,3783.9,3783.8,6.63221288]
[1753906313106,0.52854,3784.1,3783.8,3.03431288]
[1753906313307,19.247,3784.0,3783.9,3.5979]
[1753906313606,19.247,3784.0,3783.9,6.1137]
[1753906313802,1.97434,3784.1,3783.9,6.1137]
[1753906314009,21.7039,3784.1,3784.0,6.1137]
[1753906314208,20.2581,3784.1,3784.0,6.1137]
[1753906314502,21.7039,3784.1,3784.0,6.1137]
[1753906314805,22.2823,3784.1,3784.0,6.1137]
[1753906315012,24.562,3784.1,3784.0,6.1137]
[1753906315407,24.562,3784.1,3784.0,9.80301499]
[1753906317112,25.3416,3784.1,3784.0,3.68931499]
[1753906317712,30.3416,3784.1,3784.0,3.68931499]
[1753906317918,1.54074,3783.3,3783.2,2.72]
[1753906318108,22.22754,3783.3,3783.2,2.72]
[1753906318308,22.22754,3783.3,3783.2,0.8426]
[1753906318715,22.22754,3783.3,3783.2,1.4373]
[1753906318914,21.6989,3783.3,3783.2,1.4373]
[1753906320109,19.241,3783.3,3783.1,4.6562]
[1753906320309,19.241,3783.3,3783.2,2.4352]
[1753906320508,21.7802,3783.3,3783.2,6.1003]
[1753906320708,21.7802,3783.3,3783.2,2.2333]
[1753906320908,1.0032,3783.0,3782.9,5.2312]
[1753906321126,21.777,3783.0,3782.9,5.2312]
[1753906321412,21.7782,3783.0,3782.9,5.2312]
[1753906321617,21.7782,3783.0,3782.9,6.1003]
[1753906322711,21.7782,3783.0,3782.9,9.78961499]
[1753906323312,21.7782,3783.0,3782.9,3.68931499]
[1753906323518,21.7782,3783.0,3782.9,9.78961499]
[1753906323712,19.239,3783.0,3782.9,9.78961499]
[1753906324620,20.2422,3783.0,3782.9,10.31831499]
[1753906325514,21.777,3783.0,3782.9,10.31831499]
[1753906325714,19.239,3783.0,3782.9,10.31831499]
[1753906326110,0.52864,3783.4,3783.2,0.52865]
[1753906326315,19.76164,3783.3,3783.1,0.52867]
[1753906326510,0.52867,3783.2,3782.9,4.21800499]
[1753906326714,19.233,3783.1,3783.0,5.2312]
[1753906326919,20.2374,3783.1,3783.0,1.4441]
[1753906327114,21.7722,3783.1,3783.0,6.1003]
[1753906327310,1.53309,3783.0,3782.9,1.60041499]
[1753906327820,6.53309,3783.0,3782.9,1.60041499]
[1753906329620,5.52989,3783.0,3782.9,1.60041499]
[1753906330520,24.76089,3783.0,3782.9,1.60041499]
[1753906331420,24.76089,3783.0,3782.9,2.46951499]
[1753906331721,24.76089,3783.0,3782.9,1.60041499]
[1753906332713,24.76089,3783.0,3782.9,2.46951499]
[1753906333621,5.52989,3783.0,3782.9,2.46951499]
[1753906333825,0.52989,3783.0,3782.9,7.70071499]
[1753906334114,19.75569,3783.0,3782.9,7.70071499]
[1753906334319,0.52868,3783.1,3783.0,1.3551]
[1753906334509,0.52868,3783.1,3783.0,6.1003]
[1753906334510,19.75568,3783.1,3783.0,6.1003]
[1753906334715,0.52865,3783.3,3783.1,3.6651]
[1753906334914,0.52864,3783.4,3783.2,6.1003]
[1753906335114,19.227,3783.3,3783.2,6.1003]
[1753906335309,19.227,3783.3,3783.2,5.43336499]
[1753906335513,19.227,3783.3,3783.2,2.46951499]
[1753906335712,19.227,3783.3,3783.2,7.70071499]
[1753906336321,19.75564,3783.3,3783.2,7.70071499]
[1753906337120,0.52864,3783.3,3783.2,7.70071499]
[1753906337322,19.75364,3783.3,3783.2,7.70071499]
[1753906339224,19.75364,3783.3,3783.2,4.47631499]
[1753906339412,19.75364,3783.3,3783.2,7.70071499]
[1753906344623,19.75364,3783.3,3783.2,6.25981499]
[1753906344827,19.75364,3783.3,3783.2,1.60041499]
[1753906345722,24.75364,3783.3,3783.2,0.32471499]
[1753906346226,24.75364,3783.3,3783.2,4.99e-06]
[1753906346823,19.73664,3783.3,3783.2,0.86910499]
[1753906347024,19.73464,3783.3,3783.2,4.74520499]
[1753906347323,19.73464,3783.3,3783.2,6.10030499]
[1753906348420,0.52864,3783.3,3783.2,6.10030499]
[1753906348628,19.73564,3783.3,3783.2,6.10030499]
[1753906357932,19.73564,3783.3,3783.2,0.86910499]
[1753906358134,19.73564,3783.3,3781.9,1.32208]
[1753906358135,0.52881,3782.1,3782.0,2.4338]
[1753906358337,19.189,3782.4,3781.5,2.7442]
[1753906358639,19.189,3782.4,3782.3,6.062]
[1753906358940,1.3215,3783.7,3782.4,2.7442]
[1753906359135,1.32158,3783.4,3783.1,1.4478]
[1753906359341,1.32155,3783.5,3783.2,0.884]
[1753906359342,0.52864,3783.3,3783.2,0.884]
[1753906360441,0.52864,3783.3,3783.2,8.45491499]
[1753906360751,0.52864,3783.3,3783.2,9.75131499]
[1753906362144,0.52863,3783.4,3783.2,9.75131499]
[1753906362348,0.52863,3783.4,3783.3,6.062]
[1753906362546,19.71063,3783.4,3783.3,4.7656]
[1753906362746,19.71063,3783.4,3783.3,6.062]
[1753906363044,0.5286,3783.7,3783.5,0.884]
[1753906363250,0.52862,3783.5,3783.4,2.4338]
[1753906363449,0.52862,3783.5,3783.4,4.6142]
[1753906363650,0.52862,3783.5,3783.4,6.062]
[1753906364540,1.3212,3784.5,3783.5,3.6282]
[1753906364746,19.90807338,3784.4,3783.4,0.52862]
[1753906365042,0.52856,3784.0,3783.9,5.178]
[1753906365345,19.70456,3784.0,3783.9,4.7656]
[1753906366151,19.70256,3784.0,3783.9,4.7656]
[1753906366448,19.174,3784.0,3783.9,2.4338]
[1753906366652,19.174,3784.0,3783.5,3.68931499]
[1753906366653,19.174,3784.0,3783.5,4.26971499]
[1753906367149,0.5286,3783.7,3783.6,6.062]
[1753906367450,19.7006,3783.7,3783.6,6.062]
[1753906367747,19.172,3783.7,3783.6,6.062]
[1753906368756,19.171,3783.7,3783.6,2.4338]
[1753906369156,19.171,3783.7,3783.6,6.062]
[1753906370458,19.18494337,3783.7,3783.6,9.75131499]
[1753906371552,19.18630893,3783.7,3783.6,9.75131499]
[1753906372250,19.18630893,3783.7,3783.6,5.11381499]
[1753906372455,19.18630893,3783.7,3783.6,9.75131499]
[1753906373958,0.01530893,3783.7,3783.6,9.75131499]
[1753906376956,1.1407,3784.4,3784.3,2.4338]
[1753906377258,0.52849,3784.5,3784.4,6.062]
[1753906377456,19.68049,3784.5,3784.4,6.062]
[1753906377657,19.7642,3784.5,3784.4,6.062]
[1753906377857,19.7785,3784.5,3784.4,6.062]
[1753906378569,19.8013,3784.5,3784.4,6.062]
[1753906378769,19.149,3784.5,3784.4,6.59049]
[1753906380264,19.7291,3784.5,3784.0,2.4298]
[1753906380568,0.6064,3783.8,3783.7,2.8286]
[1753906380864,0.5963,3783.5,3782.6,1.32184]
[1753906381061,0.5963,3783.0,3782.9,2.4298]
[1753906381367,0.52874,3782.6,3781.6,1.32221]
[1753906381568,1.32167,3783.2,3780.3,38.066]
[1753906381569,0.5963,3781.9,3781.8,2.95864]
[1753906381763,0.6064,3781.9,3781.8,5.39804]
[1753906382063,0.5963,3781.5,3780.9,2.906]
[1753906382264,0.5963,3781.5,3781.4,2.4394]
[1753906382467,0.8679,3781.4,3781.2,2.4298]
[1753906382771,0.5963,3781.3,3781.2,3.8052]
[1753906382966,1.4743,3781.3,3781.2,2.4394]
[1753906383268,1.4743,3781.3,3781.2,0.874]
[1753906383661,1.4743,3781.3,3781.2,3.3038]
[1753906383867,0.5902,3781.7,3781.6,2.4394]
[1753906384072,19.7211,3781.7,3781.6,6.235]
[1753906384370,19.7312,3781.7,3781.6,6.235]
[1753906384565,19.7474,3781.7,3781.6,6.235]
[1753906384760,19.7474,3781.7,3781.2,3.68931499]
[1753906384966,19.7373,3781.7,3781.6,6.235]
[1753906385362,0.0101,3782.2,3781.7,2.4298]
[1753906385568,0.5801,3782.1,3782.0,4.8692]
[1753906385768,19.137,3782.1,3782.0,3.7956]
[1753906386475,19.1471,3782.1,3782.0,3.7956]
[1753906386774,19.1481,3782.1,3782.0,3.7956]
[1753906386974,19.138,3782.1,3782.0,3.7956]
[1753906387272,0.52879,3782.3,3782.0,3.7956]
[1753906387467,0.52884,3782.0,3781.3,0.52892]
[1753906387663,19.137,3782.2,3781.2,3.68931499]
[1753906387867,38.066,3782.8,3781.2,3.68931499]
[1753906388066,0.52877,3782.4,3781.8,2.906]
[1753906388267,0.52876,3782.5,3782.0,2.906]
[1753906388468,0.52876,3782.5,3782.1,2.906]
[1753906388773,0.52879,3782.4,3782.3,3.7956]
[1753906388973,0.52876,3782.5,3782.3,3.7956]
[1753906389272,0.52882,3782.1,3781.7,1.3658]
[1753906389471,0.52885,3781.9,3781.2,3.68931499]
[1753906389667,0.0101,3782.1,3781.6,1.3658]
[1753906389863,0.0101,3782.0,3781.7,3.7956]
[1753906390068,0.0101,3782.0,3781.9,2.906]
[1753906390264,19.66281,3782.2,3781.9,3.7956]
[1753906390468,19.66281,3782.2,3781.7,3.68931499]
[1753906390469,0.52883,3782.0,3781.7,3.68931499]
[1753906390974,0.52886,3781.8,3781.7,3.68931499]
[1753906391175,0.53896,3781.8,3781.7,7.85409648]
[1753906391376,0.53896,3781.8,3781.7,6.48829648]
[1753906391577,0.52886,3781.8,3781.7,7.85409648]
[1753906392674,0.53896,3781.8,3781.7,6.48829648]
[1753906392874,1.40686,3781.8,3781.7,6.48829648]
[1753906393070,1.40686,3781.8,3781.7,4.05849648]
[1753906393871,1.40686,3781.8,3781.7,2.58713648]
[1753906394073,0.52898,3780.9,3780.8,0.39673618]
[1753906394275,0.52902,3780.6,3780.5,0.8896]
[1753906394473,0.52907,3780.3,3780.1,0.20735029]
[1753906394667,19.65507,3780.3,3780.2,0.8896]
[1753906395073,19.65507,3780.3,3779.5,3.7956]
[1753906395074,0.52918,3779.6,3779.5,3.7956]
[1753906395269,0.52909,3780.1,3779.6,0.8896]
[1753906395473,19.126,3780.3,3780.0,2.906]
[1753906395676,0.52912,3780.0,3779.4,0.52919]
[1753906395880,0.21354235,3781.2,3778.9,1.32315]
[1753906396073,0.52912,3780.0,3778.8,1.32318]
[1753906396378,19.126,3781.1,3779.2,0.52921]
[1753906396379,0.52915,3779.8,3779.2,0.52921]
[1753906396571,0.52913,3779.9,3779.4,3.7956]
[1753906396778,19.125,3780.3,3779.4,3.7956]
[1753906396779,0.52911,3780.0,3779.5,2.2554]
[1753906396972,0.52911,3780.0,3779.5,0.52917]
[1753906397174,0.52912,3779.9,3779.8,3.7956]
[1753906397380,0.52909,3780.1,3779.9,3.7956]
[1753906397574,19.123,3780.0,3779.2,3.7956]
[1753906397768,19.123,3780.0,3779.7,0.52913]
[1753906397977,19.122,3780.2,3780.0,2.906]
[1753906398283,1.32221,3781.7,3780.8,2.906]
[1753906398474,0.52896,3781.1,3781.0,2.906]
[1753906398776,0.52899,3780.8,3780.7,0.8896]
[1753906399179,0.52899,3780.8,3780.7,2.4298]
[1753906399382,19.123,3780.8,3779.9,2.86299]
[1753906399578,19.123,3780.8,3780.2,1.3658]
[1753906399874,19.122,3780.9,3780.5,1.41864]
[1753906400079,0.52902,3780.7,3780.6,3.7956]
[1753906400276,0.52902,3780.7,3780.6,7.48491499]
[1753906400683,0.52902,3780.7,3780.6,4.57891499]
[1753906401384,0.52902,3780.7,3780.6,6.11911499]
[1753906401777,0.52902,3780.7,3780.6,4.57891499]
[1753906402385,0.52902,3780.7,3780.6,3.13298499]
[1753906402583,3.97901747,3780.7,3780.6,3.13298499]
[1753906403679,0.52902,3780.7,3780.6,6.92858499]
[1753906403880,19.64702,3780.7,3780.6,6.92858499]
[1753906404582,0.52902,3780.7,3780.6,6.92858499]
[1753906404984,19.64602,3780.7,3780.6,6.92858499]
[1753906405379,19.64602,3780.7,3780.6,3.13298499]
[1753906405581,19.64602,3780.7,3780.6,5.56278499]
[1753906405882,19.64602,3780.7,3780.6,6.92858499]
[1753906406083,19.64602,3780.7,3780.6,7.29130014]
[1753906406789,19.64602,3780.7,3780.6,3.49570014]
[1753906406977,19.65692,3780.7,3780.6,3.13298499]
[1753906407390,19.65692,3780.7,3780.6,3.49617392]
[1753906407687,19.65692,3780.7,3780.6,4.38577392]
[1753906407688,19.65262,3780.7,3780.6,4.38577392]
[1753906407884,19.65262,3780.7,3780.6,4.02258499]
[1753906408083,19.65262,3780.7,3780.6,4.38615903]
[1753906408589,19.65432,3780.7,3780.6,4.38615903]
[1753906408790,19.65262,3780.7,3780.6,4.38615903]
[1753906409092,19.65432,3780.7,3780.6,2.74708903]
[1753906409283,28.0596234,3780.7,3780.6,2.09571903]
[1753906409489,23.0596234,3780.7,3780.6,1.52128903]
[1753906409883,2.64531,3780.4,3778.3,1.32336]
[1753906410189,0.52914,3779.8,3779.7,0.894]
[1753906410487,19.64014,3779.8,3779.7,3.6804]
[1753906410788,19.111,3779.8,3779.7,3.6804]
[1753906411885,0.52911,3780.0,3779.2,2.7864]
[1753906412088,19.11,3779.9,3779.3,0.894]
[1753906412286,19.11,3779.9,3779.5,3.6804]
[1753906412483,19.11,3779.9,3779.8,1.3989]
[1753906412688,19.63912,3779.9,3779.8,3.6804]
[1753906412989,19.64082,3779.9,3779.8,2.2929]
[1753906414482,19.64082,3779.9,3779.8,3.6804]
[1753906414983,19.63912,3779.9,3779.8,3.6804]
[1753906415380,19.63912,3779.9,3779.8,7.36971499]
[1753906415586,0.52911,3780.0,3779.9,3.6804]
[1753906415788,19.63411,3780.0,3779.9,3.6804]
[1753906416286,0.52911,3780.0,3779.9,3.6804]
[1753906416487,0.52907,3780.4,3780.1,0.894]
[1753906416687,0.52903,3780.6,3780.4,1.3989]
[1753906416891,0.52899,3780.9,3780.5,0.52904]
[1753906417088,19.103,3780.8,3780.7,0.894]
[1753906417283,0.52904,3780.5,3780.4,2.2929]
[1753906417479,0.52904,3780.5,3780.4,3.6804]
[1753906417684,0.94214047,3781.8,3780.7,2.7864]
[1753906417886,0.52891,3781.4,3781.3,0.894]
[1753906418087,0.52891,3781.4,3781.3,2.2929]
[1753906418287,1.26362575,3781.4,3781.3,2.2929]
[1753906418489,1.26532575,3781.4,3781.3,2.2929]
[1753906418698,1.26532575,3781.4,3781.3,0.894]
[1753906419087,0.53061,3781.4,3781.3,0.894]
[1753906419289,19.63161,3781.4,3781.3,0.894]
[1753906419588,19.63161,3781.4,3779.9,1.32281]
[1753906419589,0.0017,3781.3,3780.7,0.894]
[1753906419791,0.52899,3780.9,3780.4,0.52904]
[1753906419987,0.52901,3780.8,3780.3,0.52906]
[1753906420288,19.098,3780.9,3780.5,3.68931499]
[1753906420489,0.529,3780.8,3780.7,3.6804]
[1753906420691,0.0017,3780.9,3780.5,3.68931499]
[1753906420891,0.52898,3781.0,3780.5,3.68931499]
[1753906421193,0.52899,3780.9,3780.6,3.6804]
[1753906421387,0.52901,3780.8,3780.7,3.6804]
[1753906421983,0.52901,3780.8,3780.7,4.0443107]
[1753906422692,19.096,3781.0,3780.9,3.6804]
[1753906422893,19.094,3781.1,3780.9,0.3639107]
[1753906423096,19.094,3781.2,3781.0,0.3639107]
[1753906423286,0.94384047,3782.0,3781.1,0.3639107]
[1753906423489,19.093,3781.9,3781.2,0.3639107]
[1753906423683,0.73665693,3781.8,3781.3,0.3639107]
[1753906423893,0.73665693,3781.7,3781.6,3.6804]
[1753906424099,0.73665693,3781.7,3781.6,3.1503107]
[1753906424286,0.73665693,3781.7,3781.6,2.6454107]
[1753906424589,0.73665693,3781.7,3781.6,4.0443107]
[1753906424783,19.092,3781.8,3781.6,0.3639107]
[1753906424988,19.092,3781.8,3781.7,4.5731807]
[1753906425185,19.092,3781.8,3781.7,4.0443107]
[1753906425390,19.092,3781.8,3781.7,7.73362569]
[1753906425590,19.82829779,3781.8,3781.7,7.73362569]
[1753906425797,0.73629779,3781.8,3781.7,7.73362569]
[1753906426189,19.61786,3781.9,3781.7,4.05322569]
[1753906426387,19.61786,3781.9,3781.8,4.0443107]
[1753906426593,19.089,3781.9,3781.8,4.0443107]
[1753906426790,19.0907,3781.9,3781.8,1.2579107]
[1753906427090,19.82683601,3781.9,3781.8,1.2579107]
[1753906427298,19.0907,3781.9,3781.8,1.2579107]
[1753906427487,2.26401047,3782.6,3781.8,1.2579107]
[1753906427692,0.53051,3782.2,3782.1,2.2929]
[1753906427886,1.26650195,3782.2,3782.1,1.2579107]
[1753906428086,1.26650195,3782.2,3782.1,2.6568107]
[1753906428295,0.73769195,3782.2,3782.1,2.6568107]
[1753906428595,19.82369195,3782.2,3782.1,6.4167107]
[1753906429101,19.82199195,3782.2,3782.1,6.4167107]
[1753906429296,19.086,3782.2,3782.1,6.41684074]
[1753906430297,19.086,3782.2,3782.1,10.10615573]
[1753906430490,0.5288,3782.3,3782.1,10.10577724]
[1753906430692,0.0026,3782.5,3782.4,2.3724]
[1753906430897,0.53306,3782.5,3782.4,6.41646225]
[1753906431288,0.53306,3782.5,3782.4,5.02896225]
[1753906431891,0.0043,3782.5,3782.4,6.41646225]
[1753906432092,19.61176,3782.6,3782.4,6.41646225]
[1753906432290,19.61606,3782.6,3782.5,4.17956225]
[1753906433394,19.61606,3782.6,3782.5,1.25766225]
[1753906434901,0.38,3782.7,3782.6,6.0528]
[1753906435094,19.455,3782.7,3782.6,6.41646225]
[1753906435301,19.455,3782.7,3782.6,10.10577724]
[1753906438896,0.38,3782.7,3782.6,10.10577724]
[1753906439105,19.449,3782.7,3782.6,10.10577724]
[1753906441999,19.4504,3782.7,3782.6,10.10577724]
[1753906442203,19.4513,3782.7,3782.6,10.10577724]
[1753906442404,19.4504,3782.7,3782.6,10.10577724]
[1753906442701,19.4513,3782.7,3782.6,10.21097724]
[1753906442902,19.4513,3782.7,3782.6,5.51007724]
[1753906443105,19.449,3782.7,3782.6,10.20747724]
[1753906443306,19.98003,3782.7,3782.6,10.20747724]
[1753906443707,19.97003,3782.7,3782.6,8.89447724]
[1753906444106,19.97003,3782.7,3782.6,4.05297724]
[1753906444607,19.4413,3782.7,3781.2,0.26683097]
[1753906444803,0.0014,3781.5,3781.4,2.4677]
[1753906445004,0.52894,3781.2,3781.1,1.313]
[1753906445204,0.52894,3781.2,3780.5,1.313]
[1753906445205,0.52902,3780.7,3780.5,1.313]
[1753906445405,0.52902,3780.7,3779.5,39.42395]
[1753906445406,0.0023,3780.7,3780.6,5.2848]
[1753906445606,0.0014,3780.7,3780.6,5.2848]
[1753906446206,19.057,3780.9,3780.7,2.8171]
[1753906446410,19.057,3780.9,3780.8,2.4677]
[1753906446619,19.057,3780.9,3780.8,5.2848]
[1753906448008,19.057,3780.9,3780.8,8.38671499]
[1753906448208,19.057,3780.9,3780.8,8.97411499]
[1753906450210,1.322,3782.3,3781.4,1.5041]
[1753906450513,0.5289,3781.6,3781.5,5.2848]
[1753906450714,0.53125,3781.2,3781.1,1.5041]
[1753906450902,0.0023,3781.2,3781.1,1.5041]
[1753906451108,0.0023,3781.2,3781.1,5.2848]
[1753906452304,0.0014,3780.9,3780.8,6.15701499]
[1753906452507,0.0023,3780.9,3780.8,8.97411499]
[1753906452709,0.0014,3780.9,3780.8,8.97411499]
[1753906452908,19.053,3781.6,3780.9,1.5041]
[1753906453114,0.53121,3781.5,3781.4,2.0915]
[1753906453417,0.52888,3781.7,3781.6,2.4677]
[1753906453617,19.05,3781.7,3781.6,2.99659]
[1753906454119,38.085,3782.4,3782.3,5.2848]
[1753906454311,57.134,3782.4,3782.3,5.2848]
[1753906455415,57.134,3782.4,3782.3,8.97411499]
[1753906455619,38.085,3782.4,3782.3,8.97411499]
[1753906455917,0.38,3782.7,3782.6,5.2848]
[1753906456217,0.38,3782.7,3782.6,2.8171]
[1753906457409,0.38,3782.7,3782.6,3.34585]
[1753906457616,0.38,3782.7,3782.6,2.8171]
[1753906458712,0.38,3782.7,3782.6,5.81355]
[1753906458912,0.38,3782.7,3782.6,5.2848]
[1753906459314,0.90874,3782.7,3782.6,2.7706]
[1753906459516,0.91104,3782.7,3782.6,4.2747]
[1753906459713,0.91104,3782.7,3782.6,5.2848]
[1753906459918,0.3823,3782.7,3782.6,5.2848]
[1753906460316,0.52878,3782.4,3782.0,3.2078]
[1753906460619,0.0023,3782.3,3782.2,5.2848]
[1753906461013,0.0014,3782.3,3782.2,5.2848]
[1753906461810,0.52966,3782.6,3782.2,5.2848]
[1753906462015,0.52966,3782.6,3782.2,2.4677]
[1753906462313,0.38,3782.7,3782.6,3.9718]
[1753906462519,0.38,3782.7,3782.6,5.2848]
[1753906462721,0.38,3782.7,3782.6,6.2042]
[1753906465317,0.3823,3782.7,3782.6,9.89351499]
[1753906466424,0.38,3782.7,3782.6,9.89351499]
[1753906467019,0.3814,3782.7,3782.6,9.89351499]
[1753906467224,0.3823,3782.7,3782.6,3.68931499]
[1753906467720,0.38,3782.7,3782.6,9.89351499]
[1753906468727,0.3913065,3782.7,3782.6,9.89351499]
[1753906469130,19.4133065,3782.7,3782.6,9.89351499]
[1753906470225,0.3913065,3782.7,3782.6,9.89351499]
[1753906475825,38.481,3783.6,3783.5,3.8629]
[1753906476035,19.01,3783.7,3783.5,5.9978]
[1753906476227,19.01,3783.7,3783.6,5.9978]
[1753906476424,19.4,3783.7,3783.6,5.9978]
[1753906476633,20.024,3783.7,3783.6,5.9978]
[1753906477021,19.01,3783.7,3783.6,5.9978]
[1753906477227,3.2078,3783.9,3783.7,0.5286]
[1753906477433,1.014,3783.9,3783.8,5.9978]
[1753906477629,19.007,3783.9,3783.8,6.52638]
[1753906477828,19.007,3783.9,3783.8,5.9978]
[1753906478225,19.397,3783.9,3783.8,5.9978]
[1753906478829,1.014,3783.9,3783.8,5.9978]
[1753906479027,3.2078,3784.5,3783.9,0.52857]
[1753906479237,20.5475,3784.4,3784.3,4.7157]
[1753906480036,20.5475,3784.4,3784.3,5.9978]
[1753906480236,1.014,3784.4,3784.3,5.9978]
[1753906480437,20.016,3784.4,3784.3,7.52211499]
[1753906480932,20.016,3784.4,3784.3,5.10531499]
[1753906481134,20.016,3784.4,3784.3,3.29931499]
[1753906481438,25.016,3784.4,3784.3,3.29931499]
[1753906481939,20.013,3784.4,3784.3,3.29931499]
[1753906482435,20.013,3784.4,3784.3,4.15211499]
[1753906484843,20.013,3784.4,3784.3,3.29931499]
[1753906485442,20.74729736,3784.4,3784.3,3.29931499]
[1753906485742,20.013,3784.4,3784.3,4.15211499]
[1753906486539,1.014,3784.4,3784.3,9.29711499]
[1753906486740,20.004,3784.4,3784.3,9.29711499]
[1753906487041,38.60746,3784.7,3784.6,4.7157]